[Event "*** Titled Tuesday Blitz"]
[Site "Chess.com"]
[Date "2021.02.16"]
[Round "5"]
[White "hansen"]
[Black "KuzubovYuriy"]
[Result "1/2-1/2"]
[WhiteElo "2931"]
[BlackElo "2840"]
[TimeControl "180+1"]
[EndTime "10:58:54 PST"]
[Termination "Game drawn by agreement"]

1. e4 {[%clk 0:03:00.3]} 1... c5 {[%clk 0:02:58.4]} 2. Nf3 {[%clk 0:02:55.2]}
2... Nc6 {[%clk 0:02:58.4]} 3. Bb5 {[%clk 0:02:55.2]} 3... Nf6 {[%clk
0:02:56.6]} 4. Bxc6 {[%clk 0:02:45.9]} 4... dxc6 {[%clk 0:02:57.5]} 5. d3 {[%clk
0:02:41.4]} 5... Bg4 {[%clk 0:02:56.9]} 6. Nbd2 {[%clk 0:02:41.6]} 6... Qc7
{[%clk 0:02:52.2]} 7. h3 {[%clk 0:02:41.7]} 7... Bh5 {[%clk 0:02:52.1]} 8. Nc4
{[%clk 0:02:37.8]} 8... Nd7 {[%clk 0:02:47]} 9. g4 {[%clk 0:02:32.9]} 9... Bg6
{[%clk 0:02:46.8]} 10. Nh4 {[%clk 0:02:33.5]} 10... e5 {[%clk 0:02:32.4]} 11. f4
{[%clk 0:02:31.1]} 11... b5 {[%clk 0:01:53]} 12. Nxe5 {[%clk 0:02:08.2]} 12...
Nxe5 {[%clk 0:01:53.9]} 13. fxe5 {[%clk 0:02:08.5]} 13... Qxe5 {[%clk
0:01:54.3]} 14. Qf3 {[%clk 0:02:09.1]} 14... c4 {[%clk 0:01:36.2]} 15. O-O
{[%clk 0:01:57.8]} 15... Bc5+ {[%clk 0:01:18.7]} 16. Kg2 {[%clk 0:01:57.1]}
16... O-O {[%clk 0:01:18]} 17. Qf4 {[%clk 0:01:51.8]} 17... Qxf4 {[%clk
0:01:09.9]} 18. Bxf4 {[%clk 0:01:52]} 18... Rad8 {[%clk 0:01:08.9]} 19. Nxg6
{[%clk 0:01:48.7]} 19... hxg6 {[%clk 0:01:00.7]} 20. Rad1 {[%clk 0:01:48.3]}
20... Rfe8 {[%clk 0:00:57.2]} 21. Kf3 {[%clk 0:01:44]} 21... cxd3 {[%clk
0:00:44.3]} 22. Rxd3 {[%clk 0:01:42.7]} 22... Rd4 {[%clk 0:00:35.6]} 23. Rxd4
{[%clk 0:01:18.3]} 23... Bxd4 {[%clk 0:00:36.5]} 24. c3 {[%clk 0:01:18.2]} 24...
Bb6 {[%clk 0:00:36.8]} 25. Rd1 {[%clk 0:01:18.3]} 25... Rd8 {[%clk 0:00:37.1]}
26. Rxd8+ {[%clk 0:00:30.9]} 26... Bxd8 {[%clk 0:00:38]} 27. e5 {[%clk
0:00:30.7]} 27... Kf8 {[%clk 0:00:34.8]} 28. Ke4 {[%clk 0:00:30.2]} 28... Ke8
{[%clk 0:00:34.5]} 29. Bg3 {[%clk 0:00:19]} 29... Bb6 {[%clk 0:00:27]} 30. h4
{[%clk 0:00:16.8]} 30... Kd7 {[%clk 0:00:26.2]} 31. h5 {[%clk 0:00:15.5]} 31...
gxh5 {[%clk 0:00:23.3]} 32. gxh5 {[%clk 0:00:15.9]} 32... Ke6 {[%clk 0:00:23.5]}
33. b3 {[%clk 0:00:16.6]} 33... Bc5 {[%clk 0:00:21.5]} 34. c4 {[%clk 0:00:16.2]}
34... bxc4 {[%clk 0:00:19.4]} 35. bxc4 {[%clk 0:00:16.3]} 35... a6 {[%clk
0:00:19]} 36. Bf4 {[%clk 0:00:16.5]} 36... Bf8 {[%clk 0:00:18.3]} 37. Bg3 {[%clk
0:00:16.2]} 37... g6 {[%clk 0:00:17.8]} 38. hxg6 {[%clk 0:00:13.3]} 38... fxg6
{[%clk 0:00:18.7]} 39. Bf4 {[%clk 0:00:13.9]} 39... Be7 {[%clk 0:00:18.1]} 40.
Bg3 {[%clk 0:00:11.4]} 40... g5 {[%clk 0:00:17.8]} 41. Bh2 {[%clk 0:00:11.2]}
41... Bc5 {[%clk 0:00:15.9]} 42. Bg3 {[%clk 0:00:11.1]} 42... Bb6 {[%clk
0:00:15.7]} 43. Be1 {[%clk 0:00:07.4]} 43... Bc7 {[%clk 0:00:14.5]} 44. Bd2
{[%clk 0:00:07.2]} 44... g4 {[%clk 0:00:13.9]} 45. Bf4 {[%clk 0:00:07.6]} 45...
Bb8 {[%clk 0:00:13.2]} 46. Bg3 {[%clk 0:00:07.1]} 46... Bc7 {[%clk 0:00:13.5]}
47. Bh2 {[%clk 0:00:06.7]} 47... Bb6 {[%clk 0:00:13.1]} 48. Bg3 {[%clk
0:00:04.6]} 48... Ba5 {[%clk 0:00:10.3]} 49. Kf4 {[%clk 0:00:03.9]} 49... Bc3
{[%clk 0:00:10.6]} 50. Kxg4 {[%clk 0:00:04.1]} 50... Bxe5 {[%clk 0:00:10.7]} 51.
Bf2 {[%clk 0:00:04.9]} 51... Bh2 {[%clk 0:00:09.3]} 52. Kf3 {[%clk 0:00:04.8]}
52... Ke5 {[%clk 0:00:09.2]} 53. Ke3 {[%clk 0:00:05.3]} 53... Bf4+ {[%clk
0:00:08.4]} 54. Kd3 {[%clk 0:00:05.7]} 54... Ke6 {[%clk 0:00:07.6]} 55. Kc3
{[%clk 0:00:05.9]} 55... Bd6 {[%clk 0:00:07.2]} 56. Kb3 {[%clk 0:00:05.8]} 56...
Kd7 {[%clk 0:00:07.1]} 57. Ka4 {[%clk 0:00:06.1]} 57... Kc8 {[%clk 0:00:07.4]}
58. Ka5 {[%clk 0:00:05.8]} 58... Kb7 {[%clk 0:00:07.6]} 59. Ka4 {[%clk
0:00:06.5]} 59... Be7 {[%clk 0:00:07.5]} 1/2-1/2

[Event "*** Titled Tuesday Blitz"]
[Site "Chess.com"]
[Date "2021.02.16"]
[Round "5"]
[White "Maghalashvili"]
[Black "TregubovP"]
[Result "0-1"]
[WhiteElo "2700"]
[BlackElo "2550"]
[TimeControl "180+1"]
[EndTime "10:58:54 PST"]
[Termination "TregubovP won on time"]

1. Nf3 {[%clk 0:02:50.5]} 1... c5 {[%clk 0:02:55.2]} 2. c4 {[%clk 0:02:50.2]}
2... Nf6 {[%clk 0:02:54.8]} 3. g3 {[%clk 0:02:50.2]} 3... d5 {[%clk 0:02:54.6]}
4. cxd5 {[%clk 0:02:50]} 4... Nxd5 {[%clk 0:02:55.2]} 5. Bg2 {[%clk 0:02:50.6]}
5... Nc6 {[%clk 0:02:55.5]} 6. d4 {[%clk 0:02:50.8]} 6... cxd4 {[%clk
0:02:55.2]} 7. Nxd4 {[%clk 0:02:51.7]} 7... Ndb4 {[%clk 0:02:55.5]} 8. Nxc6
{[%clk 0:02:33.5]} 8... Qxd1+ {[%clk 0:02:54.4]} 9. Kxd1 {[%clk 0:02:34.4]} 9...
Nxc6 {[%clk 0:02:54.4]} 10. Bxc6+ {[%clk 0:02:34.1]} 10... bxc6 {[%clk
0:02:54.2]} 11. Nc3 {[%clk 0:02:33.8]} 11... e5 {[%clk 0:02:50.7]} 12. Be3
{[%clk 0:02:31.9]} 12... Bf5 {[%clk 0:02:48.1]} 13. Rc1 {[%clk 0:02:16.4]} 13...
Bb4 {[%clk 0:02:35.5]} 14. a3 {[%clk 0:02:05.1]} 14... Ba5 {[%clk 0:02:20.3]}
15. f3 {[%clk 0:01:53.9]} 15... Ke7 {[%clk 0:02:00.1]} 16. Ke1 {[%clk
0:01:46.7]} 16... Rhb8 {[%clk 0:01:47.9]} 17. b4 {[%clk 0:01:44.9]} 17... Bb6
{[%clk 0:01:48]} 18. Kf2 {[%clk 0:01:37.2]} 18... Bxe3+ {[%clk 0:01:47.5]} 19.
Kxe3 {[%clk 0:01:37.2]} 19... a5 {[%clk 0:01:47.9]} 20. bxa5 {[%clk 0:00:48.6]}
20... Rxa5 {[%clk 0:01:46.1]} 21. a4 {[%clk 0:00:48.3]} 21... Rb3 {[%clk
0:01:29.7]} 22. Kf2 {[%clk 0:00:47.1]} 22... Rc5 {[%clk 0:01:11.6]} 23. Ne4
{[%clk 0:00:36.3]} 23... Rxc1 {[%clk 0:01:10.5]} 24. Rxc1 {[%clk 0:00:35.3]}
24... Bxe4 {[%clk 0:01:11]} 25. fxe4 {[%clk 0:00:35.4]} 25... Ra3 {[%clk
0:00:53.3]} 26. Rxc6 {[%clk 0:00:28.9]} 26... Rxa4 {[%clk 0:00:53.5]} 27. Kf3
{[%clk 0:00:28.3]} 27... Ra3+ {[%clk 0:00:51.1]} 28. e3 {[%clk 0:00:28.4]} 28...
h5 {[%clk 0:00:47.1]} 29. h4 {[%clk 0:00:26.8]} 29... f6 {[%clk 0:00:41.5]} 30.
Rc7+ {[%clk 0:00:24.7]} 30... Kf8 {[%clk 0:00:41.8]} 31. Rc8+ {[%clk 0:00:24.7]}
31... Kf7 {[%clk 0:00:41.5]} 32. Rc7+ {[%clk 0:00:24.6]} 32... Kg6 {[%clk
0:00:41.8]} 33. Rc6 {[%clk 0:00:24.9]} 33... Ra1 {[%clk 0:00:41]} 34. Rb6 {[%clk
0:00:24.4]} 34... Rd1 {[%clk 0:00:39.6]} 35. Ra6 {[%clk 0:00:24.1]} 35... Rd7
{[%clk 0:00:39.3]} 36. Rb6 {[%clk 0:00:24.2]} 36... Kf7 {[%clk 0:00:39.4]} 37.
Ra6 {[%clk 0:00:24.3]} 37... Re7 {[%clk 0:00:38.9]} 38. Rb6 {[%clk 0:00:24.6]}
38... Re6 {[%clk 0:00:38.7]} 39. Rb7+ {[%clk 0:00:24.7]} 39... Kg6 {[%clk
0:00:39]} 40. Rb8 {[%clk 0:00:25.1]} 40... Ra6 {[%clk 0:00:38.9]} 41. Rb7 {[%clk
0:00:25.5]} 41... Kh6 {[%clk 0:00:37.3]} 42. Rb8 {[%clk 0:00:25.4]} 42... g5
{[%clk 0:00:36.2]} 43. hxg5+ {[%clk 0:00:25.7]} 43... fxg5 {[%clk 0:00:34.9]}
44. g4 {[%clk 0:00:22.3]} 44... Rf6+ {[%clk 0:00:32.7]} 45. Kg3 {[%clk
0:00:21.6]} 45... h4+ {[%clk 0:00:31.8]} 46. Kg2 {[%clk 0:00:21.5]} 46... Ra6
{[%clk 0:00:31.4]} 47. Re8 {[%clk 0:00:19.7]} 47... Ra2+ {[%clk 0:00:31.1]} 48.
Kh3 {[%clk 0:00:18.3]} 48... Re2 {[%clk 0:00:30.8]} 49. Re6+ {[%clk 0:00:17.9]}
49... Kg7 {[%clk 0:00:30.9]} 50. Rxe5 {[%clk 0:00:18.3]} 50... Rxe3+ {[%clk
0:00:31.3]} 51. Kh2 {[%clk 0:00:18.1]} 51... Kf6 {[%clk 0:00:29.7]} 52. Rf5+
{[%clk 0:00:16.6]} 52... Kg6 {[%clk 0:00:29.5]} 53. e5 {[%clk 0:00:17]} 53...
Rg3 {[%clk 0:00:27.9]} 54. Rf6+ {[%clk 0:00:06.4]} 54... Kg7 {[%clk 0:00:28.1]}
55. Ra6 {[%clk 0:00:05.2]} 55... Rxg4 {[%clk 0:00:27.6]} 56. Ra3 {[%clk
0:00:04.1]} 56... Re4 {[%clk 0:00:26.4]} 57. Kh3 {[%clk 0:00:03.8]} 57... Kg6
{[%clk 0:00:25.2]} 58. e6 {[%clk 0:00:03.6]} 58... Rxe6 {[%clk 0:00:24.1]} 59.
Ra4 {[%clk 0:00:02.2]} 59... Kh5 {[%clk 0:00:23.3]} 60. Rc4 {[%clk 0:00:02.1]}
60... Re2 {[%clk 0:00:22.2]} 0-1

[Event "*** Titled Tuesday Blitz"]
[Site "Chess.com"]
[Date "2021.02.16"]
[Round "5"]
[White "CSB7"]
[Black "PavelChernomordik"]
[Result "1-0"]
[WhiteElo "2538"]
[BlackElo "2379"]
[TimeControl "180+1"]
[EndTime "10:58:56 PST"]
[Termination "CSB7 won by resignation"]

1. Nf3 {[%clk 0:01:38]} 1... g6 {[%clk 0:02:59.4]} 2. d4 {[%clk 0:01:37.7]} 2...
Bg7 {[%clk 0:02:59.1]} 3. c4 {[%clk 0:01:37.4]} 3... d6 {[%clk 0:02:58.8]} 4.
Nc3 {[%clk 0:01:37.7]} 4... Nc6 {[%clk 0:02:58.6]} 5. e3 {[%clk 0:01:36.1]} 5...
e5 {[%clk 0:02:58.1]} 6. Be2 {[%clk 0:01:36.5]} 6... Nh6 {[%clk 0:02:54.8]} 7.
O-O {[%clk 0:01:34.5]} 7... exd4 {[%clk 0:02:49.9]} 8. exd4 {[%clk 0:01:34.4]}
8... O-O {[%clk 0:02:48.7]} 9. Bg5 {[%clk 0:01:30.5]} 9... f6 {[%clk 0:02:46]}
10. Bc1 {[%clk 0:01:19.8]} 10... Nf7 {[%clk 0:02:42]} 11. b3 {[%clk 0:01:18]}
11... f5 {[%clk 0:02:38]} 12. Bb2 {[%clk 0:01:18.3]} 12... g5 {[%clk 0:02:31.5]}
13. Nd5 {[%clk 0:01:16.5]} 13... g4 {[%clk 0:02:25.3]} 14. Ne1 {[%clk
0:01:16.4]} 14... Ng5 {[%clk 0:02:19]} 15. b4 {[%clk 0:01:05.5]} 15... Ne6
{[%clk 0:02:06.9]} 16. Nc2 {[%clk 0:01:03.8]} 16... h5 {[%clk 0:02:03.5]} 17.
Re1 {[%clk 0:00:58.9]} 17... f4 {[%clk 0:01:56.2]} 18. b5 {[%clk 0:00:55.4]}
18... Nb8 {[%clk 0:01:53]} 19. Bd3 {[%clk 0:00:52.6]} 19... c6 {[%clk
0:01:49.6]} 20. bxc6 {[%clk 0:00:51.4]} 20... bxc6 {[%clk 0:01:49]} 21. Nc3
{[%clk 0:00:51.8]} 21... Qf6 {[%clk 0:01:38.5]} 22. Ne4 {[%clk 0:00:50.7]} 22...
Qd8 {[%clk 0:01:37.3]} 23. Rb1 {[%clk 0:00:46.8]} 23... d5 {[%clk 0:01:35.3]}
24. cxd5 {[%clk 0:00:47]} 24... cxd5 {[%clk 0:01:34.1]} 25. Nc5 {[%clk
0:00:46.8]} 25... Nxc5 {[%clk 0:01:29.5]} 26. dxc5 {[%clk 0:00:47.7]} 26... Nc6
{[%clk 0:01:26.9]} 27. Bxg7 {[%clk 0:00:42.3]} 27... Kxg7 {[%clk 0:01:26.5]} 28.
Bb5 {[%clk 0:00:42.8]} 28... Bb7 {[%clk 0:01:21.4]} 29. Bxc6 {[%clk 0:00:41]}
29... Bxc6 {[%clk 0:01:20.8]} 30. Nd4 {[%clk 0:00:40.6]} 30... Bd7 {[%clk
0:01:20.2]} 31. c6 {[%clk 0:00:38.1]} 31... Bc8 {[%clk 0:01:15.9]} 32. Rb5
{[%clk 0:00:27.3]} 32... Re8 {[%clk 0:01:02.8]} 33. g3 {[%clk 0:00:17.6]} 33...
Re4 {[%clk 0:00:53.1]} 34. Rxe4 {[%clk 0:00:13.6]} 34... dxe4 {[%clk 0:00:52.6]}
35. Rb7+ {[%clk 0:00:14.1]} 35... Kg6 {[%clk 0:00:49.6]} 36. Rb4 {[%clk
0:00:09.1]} 36... Qd6 {[%clk 0:00:44.1]} 37. Qb1 {[%clk 0:00:06.5]} 37... Qd5
{[%clk 0:00:33.8]} 38. Ne2 {[%clk 0:00:04.4]} 38... Kf5 {[%clk 0:00:17.4]} 39.
Nxf4 {[%clk 0:00:04.6]} 39... Qxc6 {[%clk 0:00:17]} 40. Rb5+ {[%clk 0:00:05.1]}
40... Kf6 {[%clk 0:00:16.5]} 41. Nxh5+ {[%clk 0:00:05.7]} 41... Ke7 {[%clk
0:00:15.1]} 42. Re5+ {[%clk 0:00:05]} 42... Be6 {[%clk 0:00:14.7]} 43. Nf4
{[%clk 0:00:04.6]} 43... Re8 {[%clk 0:00:10.3]} 44. Rxe6+ {[%clk 0:00:05.5]}
44... Qxe6 {[%clk 0:00:08.8]} 45. Nxe6 {[%clk 0:00:06.4]} 45... Kxe6 {[%clk
0:00:08.7]} 46. Qxe4+ {[%clk 0:00:07.3]} 46... Kd7 {[%clk 0:00:08.7]} 47. Qxe8+
{[%clk 0:00:07.9]} 47... Kxe8 {[%clk 0:00:08.4]} 48. f3 {[%clk 0:00:08.8]} 48...
gxf3 {[%clk 0:00:07.6]} 49. Kf2 {[%clk 0:00:09.7]} 49... Kd7 {[%clk 0:00:08.4]}
50. Kxf3 {[%clk 0:00:10.6]} 50... Kc6 {[%clk 0:00:09.1]} 51. g4 {[%clk
0:00:11.5]} 51... Kb5 {[%clk 0:00:09.8]} 52. g5 {[%clk 0:00:12.4]} 52... Ka4
{[%clk 0:00:10.4]} 53. g6 {[%clk 0:00:13]} 53... Ka3 {[%clk 0:00:11.3]} 54. g7
{[%clk 0:00:13.9]} 54... Kxa2 {[%clk 0:00:12]} 55. g8=Q+ {[%clk 0:00:14.8]}
55... Ka3 {[%clk 0:00:10.5]} 56. h4 {[%clk 0:00:15.7]} 56... a5 {[%clk
0:00:09.9]} 57. Qa8 {[%clk 0:00:16.6]} 57... a4 {[%clk 0:00:09]} 58. Qxa4+
{[%clk 0:00:17.1]} 58... Kxa4 {[%clk 0:00:08.3]} 59. h5 {[%clk 0:00:18]} 1-0

[Event "*** Titled Tuesday Blitz"]
[Site "Chess.com"]
[Date "2021.02.16"]
[Round "5"]
[White "HackingKid98"]
[Black "digilik"]
[Result "1-0"]
[WhiteElo "2472"]
[BlackElo "2243"]
[TimeControl "180+1"]
[EndTime "10:58:56 PST"]
[Termination "HackingKid98 won by resignation"]

1. c4 {[%clk 0:03:00.9]} 1... Nf6 {[%clk 0:02:59.4]} 2. g3 {[%clk 0:03:00.1]}
2... g6 {[%clk 0:02:59.8]} 3. Bg2 {[%clk 0:03:00.3]} 3... Bg7 {[%clk 0:03:00.7]}
4. d4 {[%clk 0:02:59.7]} 4... O-O {[%clk 0:03:00.9]} 5. Nf3 {[%clk 0:02:59.8]}
5... d6 {[%clk 0:03:01.1]} 6. O-O {[%clk 0:02:58.5]} 6... c6 {[%clk 0:03:02]} 7.
Nc3 {[%clk 0:02:58.3]} 7... Qa5 {[%clk 0:03:02.4]} 8. e4 {[%clk 0:02:52]} 8...
Qh5 {[%clk 0:03:00.7]} 9. e5 {[%clk 0:02:48.9]} 9... dxe5 {[%clk 0:02:58.2]} 10.
Nxe5 {[%clk 0:02:49.8]} 10... Qxd1 {[%clk 0:02:57.4]} 11. Rxd1 {[%clk
0:02:50.7]} 11... Nbd7 {[%clk 0:02:51.7]} 12. Nf3 {[%clk 0:02:46.1]} 12... Nb6
{[%clk 0:02:49.3]} 13. b3 {[%clk 0:02:45.7]} 13... Bg4 {[%clk 0:02:47.5]} 14.
Bb2 {[%clk 0:02:43.1]} 14... e5 {[%clk 0:02:32.5]} 15. h3 {[%clk 0:02:25.2]}
15... exd4 {[%clk 0:02:13.8]} 16. Rxd4 {[%clk 0:02:23.5]} 16... Be6 {[%clk
0:01:24.2]} 17. Ng5 {[%clk 0:02:19.4]} 17... Nfd5 {[%clk 0:01:17.7]} 18. cxd5
{[%clk 0:02:09.5]} 18... Bxd4 {[%clk 0:01:17.4]} 19. dxe6 {[%clk 0:02:08.8]}
19... fxe6 {[%clk 0:01:18.3]} 20. Nf3 {[%clk 0:01:48.1]} 20... Bg7 {[%clk
0:01:10.7]} 21. Nd1 {[%clk 0:01:41.2]} 21... Rad8 {[%clk 0:00:53.9]} 22. Bxg7
{[%clk 0:01:39]} 22... Kxg7 {[%clk 0:00:54.8]} 23. Ne3 {[%clk 0:01:39.2]} 23...
e5 {[%clk 0:00:43.8]} 24. Nxe5 {[%clk 0:01:35.6]} 24... Rd2 {[%clk 0:00:43.3]}
25. Nf3 {[%clk 0:01:27.4]} 25... Rb2 {[%clk 0:00:42.3]} 26. Nd1 {[%clk
0:01:16.9]} 26... Re2 {[%clk 0:00:33.2]} 27. Nc3 {[%clk 0:00:39.3]} 27... Re7
{[%clk 0:00:28.2]} 28. Nd4 {[%clk 0:00:36.9]} 28... Nd7 {[%clk 0:00:17.8]} 29.
h4 {[%clk 0:00:35.6]} 29... h6 {[%clk 0:00:17.9]} 30. Nde2 {[%clk 0:00:34.9]}
30... Nc5 {[%clk 0:00:13.4]} 31. Nf4 {[%clk 0:00:34.2]} 31... Ne6 {[%clk
0:00:13.3]} 32. Nxe6+ {[%clk 0:00:31.2]} 32... Rxe6 {[%clk 0:00:14.2]} 33. Ne4
{[%clk 0:00:31.7]} 33... Rd8 {[%clk 0:00:12.8]} 34. Rc1 {[%clk 0:00:30.5]} 34...
b6 {[%clk 0:00:12.1]} 35. b4 {[%clk 0:00:28.6]} 35... Rd4 {[%clk 0:00:11.2]} 36.
a3 {[%clk 0:00:22.2]} 36... Rd3 {[%clk 0:00:11.5]} 37. Rc3 {[%clk 0:00:20.5]}
37... Rd1+ {[%clk 0:00:11.5]} 38. Kh2 {[%clk 0:00:20]} 38... Rd4 {[%clk
0:00:12.4]} 39. Re3 {[%clk 0:00:18.4]} 39... Re7 {[%clk 0:00:07.4]} 40. Bf3
{[%clk 0:00:18.4]} 40... Rd5 {[%clk 0:00:05.2]} 41. Kg2 {[%clk 0:00:18.5]} 41...
Rde5 {[%clk 0:00:05.5]} 42. Re2 {[%clk 0:00:16.9]} 42... c5 {[%clk 0:00:05.7]}
43. bxc5 {[%clk 0:00:16.1]} 43... bxc5 {[%clk 0:00:06.6]} 44. Nc3 {[%clk
0:00:17]} 44... Rxe2 {[%clk 0:00:07.3]} 45. Bxe2 {[%clk 0:00:17.1]} 45... Rd7
{[%clk 0:00:04.6]} 46. Kf3 {[%clk 0:00:16.2]} 46... Rd4 {[%clk 0:00:04.8]} 47.
Ke3 {[%clk 0:00:16.1]} 47... Kf7 {[%clk 0:00:04.2]} 48. Ne4 {[%clk 0:00:15.3]}
48... Ra4 {[%clk 0:00:04.7]} 49. Nxc5 {[%clk 0:00:14.2]} 49... Rxa3+ {[%clk
0:00:05.6]} 50. Kd4 {[%clk 0:00:13.8]} 50... Kf6 {[%clk 0:00:04.6]} 51. g4
{[%clk 0:00:12.4]} 51... g5 {[%clk 0:00:04.6]} 52. h5 {[%clk 0:00:11.5]} 52...
Ra2 {[%clk 0:00:04.3]} 53. Ne4+ {[%clk 0:00:10.7]} 53... Kg7 {[%clk 0:00:03.5]}
54. Bc4 {[%clk 0:00:11.4]} 54... Re2 {[%clk 0:00:03.3]} 55. Bxe2 {[%clk
0:00:10.4]} 1-0

[Event "*** Titled Tuesday Blitz"]
[Site "Chess.com"]
[Date "2021.02.16"]
[Round "5"]
[White "Szparu"]
[Black "Jospem"]
[Result "0-1"]
[WhiteElo "2664"]
[BlackElo "3010"]
[TimeControl "180+1"]
[EndTime "10:58:57 PST"]
[Termination "Jospem won by checkmate"]

1. d4 {[%clk 0:02:27]} 1... Nf6 {[%clk 0:02:59.7]} 2. Bg5 {[%clk 0:02:26.8]}
2... Ne4 {[%clk 0:02:59]} 3. h4 {[%clk 0:02:26.7]} 3... d5 {[%clk 0:02:54.5]} 4.
Nd2 {[%clk 0:02:26.2]} 4... Nxd2 {[%clk 0:02:34.5]} 5. Qxd2 {[%clk 0:02:26]}
5... Bf5 {[%clk 0:02:35.3]} 6. O-O-O {[%clk 0:02:19.9]} 6... Nc6 {[%clk
0:02:34.7]} 7. e3 {[%clk 0:01:59]} 7... Qd7 {[%clk 0:02:28.8]} 8. Bd3 {[%clk
0:01:58.1]} 8... O-O-O {[%clk 0:02:27.2]} 9. Bf4 {[%clk 0:01:47.6]} 9... f6
{[%clk 0:02:21.6]} 10. Nf3 {[%clk 0:01:43]} 10... Bxd3 {[%clk 0:02:21.9]} 11.
cxd3 {[%clk 0:01:38.7]} 11... e6 {[%clk 0:02:22.8]} 12. Kb1 {[%clk 0:01:35.1]}
12... Bd6 {[%clk 0:02:22.3]} 13. Bxd6 {[%clk 0:01:34.3]} 13... Qxd6 {[%clk
0:02:23.2]} 14. Rc1 {[%clk 0:01:34.1]} 14... e5 {[%clk 0:02:17.3]} 15. dxe5
{[%clk 0:01:32.3]} 15... fxe5 {[%clk 0:02:18.2]} 16. Ka1 {[%clk 0:01:25.9]}
16... Rhf8 {[%clk 0:02:13]} 17. d4 {[%clk 0:01:19.1]} 17... e4 {[%clk
0:01:58.5]} 18. Ng5 {[%clk 0:01:19.2]} 18... h6 {[%clk 0:01:51.6]} 19. Nh3
{[%clk 0:01:19.2]} 19... Rf5 {[%clk 0:01:51.8]} 20. g4 {[%clk 0:01:05.5]} 20...
Rf3 {[%clk 0:01:43.7]} 21. g5 {[%clk 0:01:05.6]} 21... Rdf8 {[%clk 0:01:43]} 22.
Nf4 {[%clk 0:01:04.4]} 22... h5 {[%clk 0:01:31.7]} 23. Rc5 {[%clk 0:01:01.7]}
23... Ne7 {[%clk 0:01:24.5]} 24. Rhc1 {[%clk 0:00:30.4]} 24... c6 {[%clk
0:01:24.6]} 25. b4 {[%clk 0:00:28.2]} 25... R8xf4 {[%clk 0:01:19.8]} 26. exf4
{[%clk 0:00:27.9]} 26... Qxf4 {[%clk 0:01:20.4]} 27. Qxf4 {[%clk 0:00:21.8]}
27... Rxf4 {[%clk 0:01:21.3]} 28. b5 {[%clk 0:00:22]} 28... Rxf2 {[%clk
0:01:18.3]} 29. bxc6 {[%clk 0:00:21.4]} 29... bxc6 {[%clk 0:01:19.2]} 30. Ra5
{[%clk 0:00:21.1]} 30... Kd8 {[%clk 0:01:02.7]} 31. Rxa7 {[%clk 0:00:20.5]}
31... e3 {[%clk 0:01:03.3]} 32. Ra3 {[%clk 0:00:08.5]} 32... e2 {[%clk 0:01:03]}
33. Re3 {[%clk 0:00:08.2]} 33... Nf5 {[%clk 0:01:03.4]} 34. Re5 {[%clk
0:00:07.5]} 34... Nxd4 {[%clk 0:01:03.6]} 35. Kb1 {[%clk 0:00:07.8]} 35... Nf3
{[%clk 0:00:51.7]} 36. Re3 {[%clk 0:00:07.7]} 36... d4 {[%clk 0:00:49.3]} 37.
Re6 {[%clk 0:00:05.6]} 37... Kd7 {[%clk 0:00:45.6]} 38. Rexc6 {[%clk 0:00:03.5]}
38... e1=Q {[%clk 0:00:45.6]} 39. Rc7+ {[%clk 0:00:03.7]} 39... Kd6 {[%clk
0:00:46.2]} 40. Rc6+ {[%clk 0:00:04.4]} 40... Kd5 {[%clk 0:00:46.3]} 41. Rc5+
{[%clk 0:00:05.3]} 41... Ke4 {[%clk 0:00:46.8]} 42. Rxe1+ {[%clk 0:00:04.7]}
42... Nxe1 {[%clk 0:00:47.7]} 43. Rc7 {[%clk 0:00:05.3]} 43... Nf3 {[%clk
0:00:32.7]} 44. Rxg7 {[%clk 0:00:03.6]} 44... Nxh4 {[%clk 0:00:33]} 45. Re7+
{[%clk 0:00:03.6]} 45... Kd3 {[%clk 0:00:30.2]} 46. Rh7 {[%clk 0:00:02.7]} 46...
Kc3 {[%clk 0:00:28.1]} 47. Rc7+ {[%clk 0:00:01.8]} 47... Kd2 {[%clk 0:00:28.7]}
48. Rh7 {[%clk 0:00:02.5]} 48... d3 {[%clk 0:00:26.7]} 49. Rxh5 {[%clk
0:00:02.5]} 49... Ng6 {[%clk 0:00:26.4]} 50. Rh6 {[%clk 0:00:02.8]} 50... Ke1
{[%clk 0:00:21.9]} 51. Rxg6 {[%clk 0:00:02.5]} 51... d2 {[%clk 0:00:22.4]} 52.
Re6+ {[%clk 0:00:02.9]} 52... Re2 {[%clk 0:00:23.1]} 53. Rd6 {[%clk 0:00:03.8]}
53... d1=Q+ {[%clk 0:00:19]} 54. Rxd1+ {[%clk 0:00:04.4]} 54... Kxd1 {[%clk
0:00:19.9]} 55. g6 {[%clk 0:00:05.1]} 55... Rg2 {[%clk 0:00:17.6]} 56. a4 {[%clk
0:00:05]} 56... Kd2 {[%clk 0:00:17.3]} 57. Kb2 {[%clk 0:00:05.3]} 57... Kd3+
{[%clk 0:00:17.6]} 58. Kb3 {[%clk 0:00:06]} 58... Kd4 {[%clk 0:00:18.1]} 59. Kb4
{[%clk 0:00:06.7]} 59... Kd5 {[%clk 0:00:18.7]} 60. Kb5 {[%clk 0:00:07.3]} 60...
Kd6 {[%clk 0:00:19.3]} 61. Kb6 {[%clk 0:00:07]} 61... Kd7 {[%clk 0:00:19.3]} 62.
Kb7 {[%clk 0:00:06.1]} 62... Rb2+ {[%clk 0:00:19.4]} 63. Ka7 {[%clk 0:00:06.4]}
63... Kc7 {[%clk 0:00:19.6]} 64. a5 {[%clk 0:00:06.9]} 64... Rg2 {[%clk
0:00:19.7]} 65. a6 {[%clk 0:00:06.7]} 65... Rxg6 {[%clk 0:00:20.3]} 66. Ka8
{[%clk 0:00:07.3]} 66... Rxa6# {[%clk 0:00:21]} 0-1